[Event "Late-Titled-Tuesday-Blitz-August-29-2023"]
[Site "Chess.com"]
[Date "2023.08.29"]
[Round "5"]
[White "Cambek64"]
[Black "AlexOstrovskiy"]
[Result "1-0"]
[WhiteElo "2492"]
[BlackElo "2644"]
[TimeControl "180+1"]
[EndTime "14:55:28 PDT"]
[Termination "Cambek64 won by resignation"]

1. e4 {[%clk 0:02:59.3]} 1... d5 {[%clk 0:02:57.1]} 2. Nc3 {[%clk 0:02:57.8]}
2... dxe4 {[%clk 0:02:56.9]} 3. Nxe4 {[%clk 0:02:57.8]} 3... Nf6 {[%clk
0:02:57.5]} 4. Ng3 {[%clk 0:02:56.9]} 4... h5 {[%clk 0:02:57.1]} 5. h3 {[%clk
0:02:57]} 5... h4 {[%clk 0:02:57.2]} 6. N3e2 {[%clk 0:02:56.8]} 6... c5 {[%clk
0:02:57.7]} 7. d4 {[%clk 0:02:55.1]} 7... Nc6 {[%clk 0:02:56.2]} 8. Nf3 {[%clk
0:02:53.9]} 8... e6 {[%clk 0:02:47.7]} 9. c3 {[%clk 0:02:52.3]} 9... Qb6 {[%clk
0:02:29.9]} 10. Qb3 {[%clk 0:02:50.4]} 10... Ne4 {[%clk 0:02:23.5]} 11. Be3
{[%clk 0:02:49.2]} 11... Bd7 {[%clk 0:02:15.2]} 12. O-O-O {[%clk 0:02:41.1]}
12... Qxb3 {[%clk 0:02:06.7]} 13. axb3 {[%clk 0:02:40.5]} 13... O-O-O {[%clk
0:02:04.9]} 14. Ng5 {[%clk 0:02:11.1]} 14... Nxg5 {[%clk 0:01:53.4]} 15. Bxg5
{[%clk 0:02:08.6]} 15... f6 {[%clk 0:01:53.2]} 16. Be3 {[%clk 0:02:08.3]} 16...
cxd4 {[%clk 0:01:51]} 17. Nxd4 {[%clk 0:02:08.9]} 17... Nxd4 {[%clk 0:01:38.4]}
18. Bxd4 {[%clk 0:02:08.2]} 18... b6 {[%clk 0:01:33.1]} 19. Ba6+ {[%clk
0:01:55.2]} 19... Kc7 {[%clk 0:01:33.5]} 20. Be3 {[%clk 0:01:53.4]} 20... Be7
{[%clk 0:01:25.7]} 21. b4 {[%clk 0:01:52.8]} 21... Bc6 {[%clk 0:01:25]} 22. f3
{[%clk 0:01:51.3]} 22... Bd5 {[%clk 0:01:22.6]} 23. Kc2 {[%clk 0:01:44]} 23...
Bd6 {[%clk 0:01:17.9]} 24. Bd3 {[%clk 0:01:39.2]} 24... g5 {[%clk 0:01:07.1]}
25. Rd2 {[%clk 0:01:38.4]} 25... Bf4 {[%clk 0:01:04.1]} 26. Re1 {[%clk
0:01:30.4]} 26... e5 {[%clk 0:01:02.4]} 27. Be4 {[%clk 0:01:17.4]} 27... Bc4
{[%clk 0:00:48.2]} 28. Bd3 {[%clk 0:01:09.5]} 28... Be6 {[%clk 0:00:39.5]} 29.
b5 {[%clk 0:01:04.7]} 29... Rd7 {[%clk 0:00:28.3]} 30. c4 {[%clk 0:01:04.2]}
30... Rhd8 {[%clk 0:00:26.2]} 31. Bxf4 {[%clk 0:00:56.8]} 31... gxf4 {[%clk
0:00:27.1]} 32. b3 {[%clk 0:00:55.6]} 32... Rd4 {[%clk 0:00:16.8]} 33. Ree2
{[%clk 0:00:53.7]} 33... Kd6 {[%clk 0:00:14.3]} 34. Kc3 {[%clk 0:00:53.4]} 34...
Ke7 {[%clk 0:00:08.5]} 35. Bc2 {[%clk 0:00:45.6]} 35... Rxd2 {[%clk 0:00:05.3]}
36. Rxd2 {[%clk 0:00:43.1]} 36... Rxd2 {[%clk 0:00:05.6]} 37. Kxd2 {[%clk
0:00:42.2]} 37... Kd6 {[%clk 0:00:06.5]} 38. Kc3 {[%clk 0:00:42.3]} 38... Bd7
{[%clk 0:00:04.7]} 39. b4 {[%clk 0:00:37.6]} 39... Bc8 {[%clk 0:00:04.7]} 40.
Be4 {[%clk 0:00:36.1]} 40... Be6 {[%clk 0:00:05.1]} 41. Bd3 {[%clk 0:00:33.9]}
41... Bc8 {[%clk 0:00:04.8]} 42. Be4 {[%clk 0:00:33]} 42... Be6 {[%clk
0:00:04.2]} 43. Bd3 {[%clk 0:00:33]} 43... Bd7 {[%clk 0:00:04.1]} 44. Be4 {[%clk
0:00:31.7]} 44... Bc8 {[%clk 0:00:04]} 45. Bd3 {[%clk 0:00:32.1]} 45... a6
{[%clk 0:00:03.4]} 46. bxa6 {[%clk 0:00:30.9]} 46... Bxa6 {[%clk 0:00:02.8]} 47.
c5+ {[%clk 0:00:30]} 47... bxc5 {[%clk 0:00:03.7]} 48. Bxa6 {[%clk 0:00:29.7]}
48... cxb4+ {[%clk 0:00:03.7]} 49. Kxb4 {[%clk 0:00:29.7]} 49... Kd5 {[%clk
0:00:04.4]} 50. Kc3 {[%clk 0:00:27.4]} 50... f5 {[%clk 0:00:01.7]} 51. Bb7+
{[%clk 0:00:25]} 51... Kc5 {[%clk 0:00:01.9]} 52. Kd3 {[%clk 0:00:24.4]} 52...
Kd6 {[%clk 0:00:01]} 53. Bc8 {[%clk 0:00:24.7]} 53... Kd5 {[%clk 0:00:01.9]} 54.
Bxf5 {[%clk 0:00:24.8]} 1-0

[Event "Late-Titled-Tuesday-Blitz-August-29-2023"]
[Site "Chess.com"]
[Date "2023.08.29"]
[Round "5"]
[White "karinachess1"]
[Black "ckgchess"]
[Result "1-0"]
[WhiteElo "2610"]
[BlackElo "2873"]
[TimeControl "180+1"]
[EndTime "14:55:30 PDT"]
[Termination "karinachess1 won on time"]

1. d4 {[%clk 0:03:00.9]} 1... Nf6 {[%clk 0:02:59.5]} 2. c4 {[%clk 0:02:59.9]}
2... g6 {[%clk 0:02:59.1]} 3. Nf3 {[%clk 0:02:55.9]} 3... Bg7 {[%clk 0:02:59.2]}
4. g3 {[%clk 0:02:56.3]} 4... O-O {[%clk 0:02:58.3]} 5. Bg2 {[%clk 0:02:56.6]}
5... c5 {[%clk 0:02:58.6]} 6. O-O {[%clk 0:02:55.8]} 6... cxd4 {[%clk 0:02:55]}
7. Nxd4 {[%clk 0:02:56.7]} 7... Nc6 {[%clk 0:02:54]} 8. Nc2 {[%clk 0:02:55.1]}
8... b6 {[%clk 0:02:48]} 9. Nc3 {[%clk 0:02:36.5]} 9... Bb7 {[%clk 0:02:46]} 10.
b3 {[%clk 0:02:33.3]} 10... Rc8 {[%clk 0:02:18.6]} 11. Bb2 {[%clk 0:02:33]}
11... Qc7 {[%clk 0:02:18.5]} 12. Rc1 {[%clk 0:02:14.9]} 12... Qb8 {[%clk
0:02:18.7]} 13. Ne3 {[%clk 0:02:12.3]} 13... Rfd8 {[%clk 0:02:12.8]} 14. Qd2
{[%clk 0:02:08]} 14... d6 {[%clk 0:02:04.5]} 15. Ncd5 {[%clk 0:02:02.9]} 15...
Nxd5 {[%clk 0:01:57.1]} 16. cxd5 {[%clk 0:01:53.5]} 16... Bxb2 {[%clk
0:01:51.2]} 17. Qxb2 {[%clk 0:01:49.6]} 17... Ne5 {[%clk 0:01:51]} 18. f4 {[%clk
0:01:46.4]} 18... Nd7 {[%clk 0:01:41.3]} 19. Ng4 {[%clk 0:01:41.8]} 19... f6
{[%clk 0:01:35.2]} 20. e4 {[%clk 0:01:17.5]} 20... Rxc1 {[%clk 0:01:30.2]} 21.
Rxc1 {[%clk 0:01:18.4]} 21... Rc8 {[%clk 0:01:30.7]} 22. Bh3 {[%clk 0:01:09]}
22... Rxc1+ {[%clk 0:01:22.3]} 23. Qxc1 {[%clk 0:01:09.9]} 23... Nc5 {[%clk
0:01:22.9]} 24. Nf2 {[%clk 0:01:03.7]} 24... a5 {[%clk 0:01:19.5]} 25. Qe3
{[%clk 0:00:57.8]} 25... Bc8 {[%clk 0:01:12.9]} 26. Bg2 {[%clk 0:00:51.8]} 26...
Qc7 {[%clk 0:01:10.8]} 27. h4 {[%clk 0:00:51.1]} 27... Nd7 {[%clk 0:01:05.3]}
28. Qd2 {[%clk 0:00:43.1]} 28... Qc5 {[%clk 0:01:02]} 29. Kh2 {[%clk 0:00:42.5]}
29... Nf8 {[%clk 0:00:52.9]} 30. Nd1 {[%clk 0:00:32.4]} 30... Ba6 {[%clk
0:00:50]} 31. Qc3 {[%clk 0:00:29.7]} 31... Nd7 {[%clk 0:00:43.6]} 32. Qd2 {[%clk
0:00:22.8]} 32... Kf7 {[%clk 0:00:32]} 33. Ne3 {[%clk 0:00:22.9]} 33... Nf8
{[%clk 0:00:25.9]} 34. Bh3 {[%clk 0:00:22.1]} 34... Bc8 {[%clk 0:00:25.2]} 35.
Bxc8 {[%clk 0:00:20.7]} 35... Qxc8 {[%clk 0:00:26.1]} 36. Nc4 {[%clk 0:00:20.6]}
36... Qc5 {[%clk 0:00:24.5]} 37. Ne3 {[%clk 0:00:16]} 37... Nd7 {[%clk
0:00:22.2]} 38. Kg2 {[%clk 0:00:16.5]} 38... Qc7 {[%clk 0:00:18.2]} 39. Qe2
{[%clk 0:00:13.2]} 39... Nc5 {[%clk 0:00:17.9]} 40. Nc2 {[%clk 0:00:10.7]} 40...
b5 {[%clk 0:00:16.2]} 41. Nd4 {[%clk 0:00:10.8]} 41... b4 {[%clk 0:00:16.5]} 42.
Nc6 {[%clk 0:00:10.4]} 42... Qd7 {[%clk 0:00:08.9]} 43. Nxa5 {[%clk 0:00:06.5]}
43... Qa7 {[%clk 0:00:08.8]} 44. Nc6 {[%clk 0:00:05.8]} 44... Qa3 {[%clk
0:00:09.2]} 45. e5 {[%clk 0:00:05.5]} 45... dxe5 {[%clk 0:00:03.4]} 46. fxe5
{[%clk 0:00:06.4]} 46... Qc1 {[%clk 0:00:02.7]} 47. d6 {[%clk 0:00:03.8]} 47...
Ne6 {[%clk 0:00:01.9]} 48. Nxe7 {[%clk 0:00:02.3]} 48... Nd4 {[%clk 0:00:01.4]}
49. Qf2 {[%clk 0:00:02.1]} 1-0

[Event "Late-Titled-Tuesday-Blitz-August-29-2023"]
[Site "Chess.com"]
[Date "2023.08.29"]
[Round "5"]
[White "scandalgod"]
[Black "IMRosen"]
[Result "1-0"]
[WhiteElo "2481"]
[BlackElo "2607"]
[TimeControl "180+1"]
[EndTime "14:55:33 PDT"]
[Termination "scandalgod won by checkmate"]

1. d4 {[%clk 0:02:45.8]} 1... d5 {[%clk 0:02:54.4]} 2. c4 {[%clk 0:02:45.4]}
2... e6 {[%clk 0:02:54.7]} 3. Nf3 {[%clk 0:02:44.4]} 3... Nf6 {[%clk 0:02:55.1]}
4. g3 {[%clk 0:02:44.9]} 4... dxc4 {[%clk 0:02:55.2]} 5. Bg2 {[%clk 0:02:45.2]}
5... Bb4+ {[%clk 0:02:55.8]} 6. Bd2 {[%clk 0:02:44.3]} 6... c5 {[%clk
0:02:56.2]} 7. O-O {[%clk 0:02:42.2]} 7... O-O {[%clk 0:02:56.4]} 8. dxc5 {[%clk
0:02:33]} 8... Bxc5 {[%clk 0:02:57.3]} 9. Qc2 {[%clk 0:02:32.7]} 9... Nbd7
{[%clk 0:02:57.4]} 10. Qxc4 {[%clk 0:02:32]} 10... b5 {[%clk 0:02:58]} 11. Qh4
{[%clk 0:02:11.4]} 11... Bb7 {[%clk 0:02:54.9]} 12. Nc3 {[%clk 0:02:11.2]} 12...
Qb6 {[%clk 0:02:49.7]} 13. a4 {[%clk 0:02:06]} 13... a6 {[%clk 0:02:34.1]} 14.
a5 {[%clk 0:02:00.7]} 14... Qa7 {[%clk 0:02:34.2]} 15. Rac1 {[%clk 0:01:57.3]}
15... Rfd8 {[%clk 0:02:27]} 16. b4 {[%clk 0:01:49.7]} 16... Be7 {[%clk
0:02:24.4]} 17. Be3 {[%clk 0:01:45.7]} 17... Qb8 {[%clk 0:02:19.1]} 18. Rfd1
{[%clk 0:01:34.1]} 18... Nf8 {[%clk 0:02:10.8]} 19. Bc5 {[%clk 0:01:16.8]} 19...
Ng6 {[%clk 0:01:50.3]} 20. Qg5 {[%clk 0:01:14.4]} 20... h6 {[%clk 0:01:40.2]}
21. Qe3 {[%clk 0:01:06.7]} 21... Nd5 {[%clk 0:01:34.3]} 22. Nxd5 {[%clk
0:01:04.1]} 22... Rxd5 {[%clk 0:01:30.9]} 23. Nd4 {[%clk 0:00:56.1]} 23... Rd7
{[%clk 0:01:14.8]} 24. Nc6 {[%clk 0:00:52.6]} 24... Qe8 {[%clk 0:01:03.4]} 25.
Nxe7+ {[%clk 0:00:35.5]} 25... Nxe7 {[%clk 0:01:03.7]} 26. Rxd7 {[%clk
0:00:28.2]} 26... Qxd7 {[%clk 0:01:01.5]} 27. Bxb7 {[%clk 0:00:23.4]} 27... Qxb7
{[%clk 0:01:01.7]} 28. Bb6 {[%clk 0:00:21]} 28... Nd5 {[%clk 0:00:58.7]} 29. Qf3
{[%clk 0:00:20.3]} 29... Rc8 {[%clk 0:00:53.3]} 30. Rxc8+ {[%clk 0:00:18.9]}
30... Qxc8 {[%clk 0:00:54.2]} 31. Bc5 {[%clk 0:00:18.9]} 31... Qc6 {[%clk
0:00:49.2]} 32. Kg2 {[%clk 0:00:14.2]} 32... f6 {[%clk 0:00:44]} 33. Kg1 {[%clk
0:00:14.4]} 33... Qd7 {[%clk 0:00:41.9]} 34. Qd3 {[%clk 0:00:13.3]} 34... Kf7
{[%clk 0:00:34.8]} 35. h4 {[%clk 0:00:12.9]} 35... h5 {[%clk 0:00:11.4]} 36. Qf3
{[%clk 0:00:11.4]} 36... g6 {[%clk 0:00:10.7]} 37. Qd3 {[%clk 0:00:11.3]} 37...
Kg7 {[%clk 0:00:05.6]} 38. Qd4 {[%clk 0:00:11.4]} 38... e5 {[%clk 0:00:05.1]}
39. Qd3 {[%clk 0:00:11.5]} 39... Kf7 {[%clk 0:00:04.1]} 40. Qb3 {[%clk
0:00:10.7]} 40... Qe6 {[%clk 0:00:03.7]} 41. Qd3 {[%clk 0:00:10.1]} 41... f5
{[%clk 0:00:04.2]} 42. e4 {[%clk 0:00:09.6]} 42... fxe4 {[%clk 0:00:04.6]} 43.
Qxe4 {[%clk 0:00:09.7]} 43... Ne7 {[%clk 0:00:03.1]} 44. Qb7 {[%clk 0:00:09.1]}
44... e4 {[%clk 0:00:02.7]} 45. Bxe7 {[%clk 0:00:08]} 45... Qxe7 {[%clk
0:00:03.6]} 46. Qxa6 {[%clk 0:00:08.3]} 46... Qxb4 {[%clk 0:00:04.2]} 47. Qb7+
{[%clk 0:00:07.9]} 47... Ke6 {[%clk 0:00:03.8]} 48. a6 {[%clk 0:00:08.3]} 48...
Qe1+ {[%clk 0:00:02.6]} 49. Kg2 {[%clk 0:00:07.9]} 49... Qe2 {[%clk 0:00:02.8]}
50. Qb6+ {[%clk 0:00:07.6]} 50... Kf5 {[%clk 0:00:02.6]} 51. a7 {[%clk
0:00:07.6]} 51... Qf3+ {[%clk 0:00:02.5]} 52. Kg1 {[%clk 0:00:07.4]} 52... Kg4
{[%clk 0:00:02.2]} 53. Qe3 {[%clk 0:00:06.2]} 53... Qd1+ {[%clk 0:00:01.9]} 54.
Kg2 {[%clk 0:00:06.3]} 54... Qa1 {[%clk 0:00:01.8]} 55. Qxe4# {[%clk 0:00:06]}
1-0

[Event "Late-Titled-Tuesday-Blitz-August-29-2023"]
[Site "Chess.com"]
[Date "2023.08.29"]
[Round "5"]
[White "Mops_2004"]
[Black "KrokerGuy"]
[Result "1-0"]
[WhiteElo "2765"]
[BlackElo "2495"]
[TimeControl "180+1"]
[EndTime "14:55:34 PDT"]
[Termination "Mops_2004 won on time"]

1. Nf3 {[%clk 0:03:00.9]} 1... Nf6 {[%clk 0:02:59]} 2. g3 {[%clk 0:03:01.1]}
2... d5 {[%clk 0:02:59.2]} 3. Bg2 {[%clk 0:03:00.7]} 3... Bg4 {[%clk 0:03:00]}
4. h3 {[%clk 0:03:00.4]} 4... Bxf3 {[%clk 0:03:00.4]} 5. Bxf3 {[%clk 0:03:00.5]}
5... e5 {[%clk 0:02:57.8]} 6. d3 {[%clk 0:03:00]} 6... Be7 {[%clk 0:02:49.8]} 7.
O-O {[%clk 0:02:59.4]} 7... O-O {[%clk 0:02:47]} 8. Nc3 {[%clk 0:02:57.4]} 8...
Nc6 {[%clk 0:02:38.2]} 9. e4 {[%clk 0:02:51.4]} 9... dxe4 {[%clk 0:02:32.3]} 10.
Nxe4 {[%clk 0:02:49.6]} 10... Nxe4 {[%clk 0:02:28.7]} 11. dxe4 {[%clk
0:02:46.6]} 11... Qxd1 {[%clk 0:02:25.1]} 12. Bxd1 {[%clk 0:02:46.3]} 12... Bc5
{[%clk 0:02:21.8]} 13. c3 {[%clk 0:02:45.9]} 13... Kh8 {[%clk 0:02:18.3]} 14.
Kg2 {[%clk 0:02:45.3]} 14... f5 {[%clk 0:02:16.1]} 15. exf5 {[%clk 0:02:45]}
15... Rxf5 {[%clk 0:02:17]} 16. Bc2 {[%clk 0:02:44.7]} 16... Rf7 {[%clk
0:02:13.6]} 17. Be4 {[%clk 0:02:41.6]} 17... Raf8 {[%clk 0:02:11]} 18. Be3
{[%clk 0:02:21.5]} 18... Bxe3 {[%clk 0:01:53.7]} 19. fxe3 {[%clk 0:02:21.2]}
19... Rxf1 {[%clk 0:01:54.6]} 20. Rxf1 {[%clk 0:02:21.2]} 20... Rxf1 {[%clk
0:01:55.5]} 21. Kxf1 {[%clk 0:02:21.5]} 21... Nd8 {[%clk 0:01:56.4]} 22. Ke2
{[%clk 0:02:20.7]} 22... g6 {[%clk 0:01:54.7]} 23. Kd3 {[%clk 0:02:01.7]} 23...
Kg7 {[%clk 0:01:48.1]} 24. Kc4 {[%clk 0:02:00.6]} 24... Kf6 {[%clk 0:01:48.5]}
25. b4 {[%clk 0:01:56.8]} 25... Ke6 {[%clk 0:01:43.6]} 26. Kc5 {[%clk
0:01:53.4]} 26... a6 {[%clk 0:01:38.3]} 27. a4 {[%clk 0:01:47.5]} 27... b6+
{[%clk 0:01:29.1]} 28. Kc4 {[%clk 0:01:47.3]} 28... Kd6 {[%clk 0:01:25.2]} 29.
h4 {[%clk 0:01:13.3]} 29... c6 {[%clk 0:00:58]} 30. a5 {[%clk 0:01:10.4]} 30...
b5+ {[%clk 0:00:43.3]} 31. Kd3 {[%clk 0:01:06.8]} 31... Ne6 {[%clk 0:00:15.4]}
32. Bg2 {[%clk 0:00:59.3]} 32... Nc7 {[%clk 0:00:11.8]} 33. Bh3 {[%clk
0:00:55.5]} 33... c5 {[%clk 0:00:04.5]} 34. e4 {[%clk 0:00:48.7]} 34... cxb4
{[%clk 0:00:01.5]} 35. cxb4 {[%clk 0:00:49.6]} 35... Ne6 {[%clk 0:00:01.7]} 36.
Kd2 {[%clk 0:00:38.2]} 36... Nc7 {[%clk 0:00:01.5]} 37. Bc8 {[%clk 0:00:37.4]}
37... Kc6 {[%clk 0:00:01.6]} 38. Ke3 {[%clk 0:00:34.8]} 38... Kd6 {[%clk
0:00:02.1]} 39. Kf3 {[%clk 0:00:32]} 39... Ke7 {[%clk 0:00:02.7]} 40. g4 {[%clk
0:00:28.5]} 40... Kf6 {[%clk 0:00:02]} 41. g5+ {[%clk 0:00:28.7]} 41... Ke7
{[%clk 0:00:02.4]} 42. Kg4 {[%clk 0:00:28.4]} 42... Kd6 {[%clk 0:00:02.5]} 43.
h5 {[%clk 0:00:27.6]} 43... Ke7 {[%clk 0:00:03.2]} 44. Kh4 {[%clk 0:00:13]}
44... Kf7 {[%clk 0:00:02.4]} 45. Kg4 {[%clk 0:00:09.3]} 45... Ke7 {[%clk
0:00:02.5]} 46. Kg3 {[%clk 0:00:09.6]} 46... Kf7 {[%clk 0:00:02.6]} 47. Kf3
{[%clk 0:00:10]} 47... Ke7 {[%clk 0:00:02.9]} 48. Bg4 {[%clk 0:00:10]} 48... Ne6
{[%clk 0:00:02.3]} 49. Ke3 {[%clk 0:00:09.3]} 49... Nxg5 {[%clk 0:00:01.4]} 50.
hxg6 {[%clk 0:00:08.6]} 50... hxg6 {[%clk 0:00:01.6]} 51. Bc8 {[%clk 0:00:09.2]}
1-0

[Event "Late-Titled-Tuesday-Blitz-August-29-2023"]
[Site "Chess.com"]
[Date "2023.08.29"]
[Round "5"]
[White "JosephRyan"]
[Black "NovikovaGalina"]
[Result "0-1"]
[WhiteElo "2343"]
[BlackElo "2408"]
[TimeControl "180+1"]
[EndTime "14:55:36 PDT"]
[Termination "NovikovaGalina won on time"]

1. e4 {[%clk 0:03:00.9]} 1... e6 {[%clk 0:02:55.2]} 2. d4 {[%clk 0:02:50.4]}
2... d5 {[%clk 0:02:56.1]} 3. e5 {[%clk 0:02:50.9]} 3... c5 {[%clk 0:02:55.4]}
4. c3 {[%clk 0:02:51.4]} 4... Nc6 {[%clk 0:02:56.3]} 5. Nf3 {[%clk 0:02:51.6]}
5... Bd7 {[%clk 0:02:57.1]} 6. a3 {[%clk 0:02:49.5]} 6... Qc7 {[%clk 0:02:57.3]}
7. b4 {[%clk 0:02:48]} 7... c4 {[%clk 0:02:56.9]} 8. Bf4 {[%clk 0:02:42.1]} 8...
f6 {[%clk 0:02:56.9]} 9. Nbd2 {[%clk 0:02:34.2]} 9... h6 {[%clk 0:02:54.1]} 10.
Bg3 {[%clk 0:02:33]} 10... f5 {[%clk 0:02:54.1]} 11. h4 {[%clk 0:02:31.6]} 11...
O-O-O {[%clk 0:02:53.7]} 12. h5 {[%clk 0:02:28.4]} 12... Nge7 {[%clk 0:02:51.2]}
13. Bf4 {[%clk 0:02:28.2]} 13... Kb8 {[%clk 0:02:49.8]} 14. g3 {[%clk
0:02:28.1]} 14... Nc8 {[%clk 0:02:49.7]} 15. a4 {[%clk 0:02:25.2]} 15... Be8
{[%clk 0:02:48.1]} 16. a5 {[%clk 0:02:23.3]} 16... g5 {[%clk 0:02:48.7]} 17.
hxg6 {[%clk 0:02:22.4]} 17... Bxg6 {[%clk 0:02:48.9]} 18. Qa4 {[%clk 0:02:09.5]}
18... Be8 {[%clk 0:02:28.2]} 19. b5 {[%clk 0:02:08.7]} 19... N6e7 {[%clk
0:02:27.4]} 20. b6 {[%clk 0:01:59.4]} 20... Qc6 {[%clk 0:02:24.9]} 21. Qxc6
{[%clk 0:01:52.2]} 21... Bxc6 {[%clk 0:02:20.9]} 22. bxa7+ {[%clk 0:01:51.9]}
22... Nxa7 {[%clk 0:02:21.8]} 23. Be2 {[%clk 0:01:47]} 23... Nb5 {[%clk
0:02:22.3]} 24. Nb1 {[%clk 0:01:40.7]} 24... Ng6 {[%clk 0:02:21.5]} 25. Bd2
{[%clk 0:01:39.8]} 25... Kc7 {[%clk 0:02:15.5]} 26. Bc1 {[%clk 0:01:39.3]} 26...
Be7 {[%clk 0:02:07.5]} 27. Kd2 {[%clk 0:01:35.6]} 27... f4 {[%clk 0:01:59.6]}
28. g4 {[%clk 0:01:32.2]} 28... Bg5 {[%clk 0:01:54]} 29. Na3 {[%clk 0:01:22.3]}
29... Ra8 {[%clk 0:01:45.9]} 30. Nxb5+ {[%clk 0:01:21.3]} 30... Bxb5 {[%clk
0:01:46.8]} 31. Ba3 {[%clk 0:01:18.6]} 31... Rxa5 {[%clk 0:01:37.2]} 32. Bd6+
{[%clk 0:01:18.3]} 32... Kb6 {[%clk 0:01:37.7]} 33. Bc5+ {[%clk 0:01:12.5]}
33... Ka6 {[%clk 0:01:34.1]} 34. Rxa5+ {[%clk 0:01:11.6]} 34... Kxa5 {[%clk
0:01:35]} 35. Rb1 {[%clk 0:00:37.3]} 35... Be7 {[%clk 0:01:22.1]} 36. Bxe7
{[%clk 0:00:26.2]} 36... Nxe7 {[%clk 0:01:23]} 37. Bd1 {[%clk 0:00:21.4]} 37...
Rg8 {[%clk 0:01:14.2]} 38. Nh4 {[%clk 0:00:18.4]} 38... Ng6 {[%clk 0:01:05.3]}
39. Nxg6 {[%clk 0:00:17.9]} 39... Rxg6 {[%clk 0:01:06.2]} 40. Ra1+ {[%clk
0:00:17.7]} 40... Kb6 {[%clk 0:01:06.9]} 41. Ra8 {[%clk 0:00:18]} 41... Bc6
{[%clk 0:00:29.5]} 42. Rh8 {[%clk 0:00:12.8]} 42... Kc7 {[%clk 0:00:29.6]} 43.
Rh7+ {[%clk 0:00:12.4]} 43... Kb6 {[%clk 0:00:29.8]} 44. Ke1 {[%clk 0:00:12.2]}
44... Ka6 {[%clk 0:00:29]} 45. f3 {[%clk 0:00:08]} 45... b5 {[%clk 0:00:29.4]}
46. Bc2 {[%clk 0:00:07.8]} 46... Rg8 {[%clk 0:00:26.1]} 47. Rxh6 {[%clk
0:00:08.1]} 47... Re8 {[%clk 0:00:25.2]} 48. g5 {[%clk 0:00:08]} 48... b4 {[%clk
0:00:24.7]} 49. cxb4 {[%clk 0:00:07.5]} 49... Kb5 {[%clk 0:00:25.4]} 50. Kd2
{[%clk 0:00:06.9]} 50... Kxb4 {[%clk 0:00:25.7]} 51. g6 {[%clk 0:00:07.8]} 51...
c3+ {[%clk 0:00:26.1]} 52. Ke2 {[%clk 0:00:05.4]} 52... Bb5+ {[%clk 0:00:25.4]}
53. Bd3 {[%clk 0:00:05.3]} 53... c2 {[%clk 0:00:24.1]} 54. Rh1 {[%clk
0:00:03.7]} 54... Bxd3+ {[%clk 0:00:16.9]} 55. Kxd3 {[%clk 0:00:04.6]} 55... Kb3
{[%clk 0:00:17.6]} 56. g7 {[%clk 0:00:04]} 56... Rg8 {[%clk 0:00:16.3]} 57. Rg1
{[%clk 0:00:03.3]} 57... Kb2 {[%clk 0:00:15.7]} 58. Kd2 {[%clk 0:00:01.8]} 58...
Rxg7 {[%clk 0:00:14.5]} 59. Rc1 {[%clk 0:00:01]} 59... Rg2+ {[%clk 0:00:14.2]}
0-1